lending/lending_fUSD_20240207
["ID","MTS","AMOUNT","RATE_DAILY","PERIOD"]
[313437772,1707347468343,-500.0,0.00049589,61]
[313437773,1707347468354,-500.0,0.00049589,61]
[313437774,1707347468363,-500.0,0.00049589,61]
[313437775,1707347468372,-500.0,0.00049589,61]
[313437776,1707347468381,-500.0,0.00049589,61]
[313437777,1707347468390,-500.0,0.00049589,61]
[313437778,1707347468400,-500.0,0.00049589,61]
[313437779,1707347468409,-500.0,0.00049589,61]
[313437780,1707347468418,-500.0,0.00049589,61]
[313437781,1707347468428,-500.0,0.00049589,61]
[313437782,1707347468437,-500.0,0.00049589,61]
[313437783,1707347468447,-500.0,0.00049589,61]
[313437784,1707347468456,-500.0,0.00049589,61]
[313437785,1707347468465,-500.0,0.00049589,61]
[313437786,1707347468475,-500.0,0.00049589,61]
[313437787,1707347468483,-500.0,0.00049589,61]
[313437788,1707347468493,-538.94,0.00049589,61]
[313437789,1707347468501,-500.0,0.00049589,61]
[313437790,1707347468510,-500.0,0.00049589,61]
[313437791,1707347468519,-508.49,0.00049589,61]
[313437792,1707347468528,-500.0,0.00049589,61]
[313437793,1707347468537,-500.0,0.00049589,61]
[313437794,1707347468546,-500.0,0.00049589,61]
[313437795,1707347468555,-500.0,0.00049589,61]
[313437796,1707347468564,-500.0,0.00049589,61]
[313437797,1707347468573,-596.14,0.00049589,61]
[313437798,1707347468582,-622.33,0.00049589,61]
[313437799,1707347468591,-500.0,0.00049589,61]
[313437800,1707347468601,-500.0,0.00049589,7]
[313437801,1707347468611,-375.7102084,0.00049589,61]
[313437802,1707347468620,-500.0,0.00049589,61]
[313437803,1707347468629,-500.0,0.00049589,61]
[313437804,1707347468638,-500.0,0.00049589,61]
[313437805,1707347468647,-865.43,0.00049589,61]
[313437806,1707347468656,-500.0,0.00049589,61]
[313437807,1707347468665,-500.0,0.00049589,61]
[313437808,1707347468674,-500.0,0.00049589,61]
[313437809,1707347468682,-701.57,0.00049589,61]
[313437810,1707347468691,-500.0,0.00049589,61]
[313437811,1707347468700,-500.0,0.00049589,61]
[313437812,1707347468709,-500.0,0.00049589,61]
[313437813,1707347468718,-500.0,0.00049589,61]
[313437814,1707347468727,-500.0,0.00049589,61]
[313437815,1707347468736,-500.0,0.00049589,61]
[313437816,1707347468745,-374.94418835,0.00049589,61]
[313437817,1707347468754,-305.78769581,0.00049589,61]
[313437818,1707347468763,-500.0,0.00049589,61]
[313437819,1707347468772,-326.66328304,0.00049589,61]
[313437820,1707347468781,-500.0,0.00049589,61]
[313437821,1707347468790,-500.0,0.00049589,61]
[313437822,1707347468799,-500.0,0.00049589,61]
[313437823,1707347468808,-500.0,0.00049589,61]
[313437824,1707347468817,-500.0,0.00049589,61]
[313437825,1707347468827,-519.35,0.00049589,61]
[313437826,1707347468837,-500.0,0.00049589,61]
[313437827,1707347468846,-500.0,0.00049589,7]
[313437828,1707347468857,-500.0,0.00049589,61]
[313437829,1707347468867,-1000.0,0.00049589,61]
[313437830,1707347468876,-500.0,0.00049589,61]
[313437831,1707347468886,-500.0,0.00049589,61]
[313437832,1707347468895,-500.0,0.00049589,61]
[313437833,1707347468905,-500.0,0.00049589,61]
[313437834,1707347468916,-500.0,0.00049589,61]
[313437835,1707347468925,-500.0,0.00049589,61]
[313437836,1707347468935,-500.0,0.00049589,61]
[313437837,1707347468944,-500.0,0.00049589,61]
[313437838,1707347468953,-500.0,0.00049589,61]
[313437839,1707347468963,-500.0,0.00049589,61]
[313437840,1707347468973,-483.6721388,0.00049589,61]
[313437841,1707347468982,-500.0,0.00049589,61]
[313437842,1707347468991,-593.04,0.00049589,61]
[313437843,1707347469002,-500.0,0.00049589,61]
[313437844,1707347469013,-1000.0,0.00049589,2]
[313437845,1707347469022,-500.0,0.00049589,61]
[313437846,1707347469031,-500.0,0.00049589,61]
[313437847,1707347469040,-657.6,0.00049589,61]
[313437848,1707347469050,-500.0,0.00049589,61]
[313437849,1707347469059,-622.87,0.00049589,61]
[313437850,1707347469068,-504.7,0.00049589,61]
[313437851,1707347469079,-500.0,0.00049589,61]
[313437852,1707347469089,-502.52,0.00049589,61]
[313437853,1707347469098,-528.68,0.00049589,61]
[313437854,1707347469108,-500.0,0.00049589,61]
[313437855,1707347469117,-194.61436062,0.00049589,61]
[313437856,1707347469127,-500.0,0.00049589,61]
[313437857,1707347469136,-500.0,0.00049589,61]
[313437858,1707347469145,-500.0,0.00049589,61]
[313437859,1707347469155,-500.0,0.00049589,61]
[313437860,1707347469164,-500.0,0.00049589,61]
[313437861,1707347469174,-500.0,0.00049589,61]
[313437862,1707347469183,-500.0,0.00049589,61]
[313437863,1707347469192,-500.0,0.00049589,61]
[313437864,1707347469202,-500.0,0.00049589,61]
[313437865,1707347469211,-858.39,0.00049589,61]
[313437866,1707347469220,-500.0,0.00049589,61]
[313437867,1707347469232,-511.97,0.00049589,61]
[313437868,1707347469241,-587.18,0.00049589,61]
[313437869,1707347469251,-291.77113784,0.00049589,10]
[313437870,1707347469260,-500.0,0.00049589,61]
[313437871,1707347469270,-500.0,0.00049589,61]
[313437872,1707347469280,-500.0,0.00049589,61]
[313437873,1707347469290,-500.0,0.00049589,61]
[313437874,1707347469299,-500.0,0.00049589,61]
[313437875,1707347469308,-601.70773329,0.00049589,61]
[313437876,1707347469318,-500.0,0.00049589,61]
[313437877,1707347469327,-500.0,0.00049589,61]
[313437878,1707347469337,-500.0,0.00049589,61]
[313437879,1707347469346,-500.0,0.00049589,61]
[313437880,1707347469356,-500.0,0.00049589,61]
[313437881,1707347469365,-500.0,0.00049589,61]
[313437882,1707347469375,-500.0,0.00049589,61]
[313437883,1707347469384,-500.0,0.00049589,61]
[313437884,1707347469393,-500.0,0.00049589,61]
[313437885,1707347469404,-625.76,0.00049589,61]
[313437886,1707347469413,-500.0,0.00049589,61]
[313437887,1707347469422,-500.0,0.00049589,61]
[313437888,1707347469432,-500.0,0.00049589,61]
[313437889,1707347469441,-500.0,0.00049589,61]
[313437890,1707347469451,-500.0,0.00049589,61]
[313437891,1707347469460,-500.0,0.00049589,61]
[313437892,1707347469470,-610.83,0.00049589,61]
[313437893,1707347469480,-500.0,0.00049589,61]
[313437894,1707347469489,-337.57373884,0.00049589,61]
[313437895,1707347469499,-500.0,0.00049589,61]
[313437896,1707347469509,-500.0,0.00049589,61]
[313437897,1707347469519,-500.0,0.00049589,61]
[313437898,1707347469529,-1235.57,0.00049589,61]
[313437899,1707347469539,-500.0,0.00049589,61]
[313437900,1707347469549,-567.37539848,0.00049589,61]
[313437901,1707347469559,-500.0,0.00049589,61]
[313437902,1707347469570,-520.99536207,0.00049589,61]
[313437903,1707347469579,-500.0,0.00049589,2]
[313437904,1707347469590,-500.0,0.00049589,2]
[313437905,1707347469600,-500.0,0.00049589,61]
[313437906,1707347469610,-577.59,0.00049589,61]
[313437907,1707347469619,-500.0,0.00049589,61]
[313437908,1707347469629,-500.0,0.00049589,61]
[313437909,1707347469638,-500.0,0.00049589,61]
[313437910,1707347469648,-500.0,0.00049589,61]
[313437911,1707347469657,-592.65,0.00049589,61]
[313437912,1707347469667,-638.12,0.00049589,61]
[313437913,1707347469678,-500.0,0.00049589,2]
[313437914,1707347469687,-500.0,0.00049589,61]
[313437915,1707347469697,-884.51,0.00049589,61]
[313437916,1707347469706,-500.0,0.00049589,61]
[313437917,1707347469715,-893.34,0.00049589,61]
[313437918,1707347469725,-500.0,0.00049589,61]
[313437919,1707347469735,-500.0,0.00049589,61]
[313437920,1707347469744,-500.0,0.00049589,61]
[313437921,1707347469754,-500.0,0.00049589,61]
[313437922,1707347469763,-500.0,0.00049589,61]
[313437923,1707347469773,-1433.63,0.00049589,61]
[313437924,1707347469783,-500.0,0.00049589,61]
[313437925,1707347469792,-500.0,0.00049589,61]
[313437926,1707347469801,-500.0,0.00049589,61]
[313437927,1707347469811,-500.0,0.00049589,61]
[313437928,1707347469820,-500.0,0.00049589,61]
[313437929,1707347469829,-500.0,0.00049589,61]
[313437930,1707347469839,-500.0,0.00049589,61]
[313437931,1707347469848,-500.0,0.00049589,61]
[313437932,1707347469858,-500.0,0.00049589,61]
[313437933,1707347469867,-565.37266359,0.00049589,61]
[313437934,1707347469877,-625.71,0.00049589,61]
[313437935,1707347469887,-500.0,0.00049589,61]
[313437936,1707347469896,-1393.55,0.00049589,61]
[313437937,1707347469905,-570.29267347,0.00049589,61]
[313437938,1707347469915,-500.0,0.00049589,61]
[313437939,1707347469924,-785.93,0.00049589,61]
[313437940,1707347469934,-500.0,0.00049589,61]
[313437941,1707347469943,-500.0,0.00049589,61]
[313437942,1707347469952,-500.0,0.00049589,61]
[313437943,1707347469962,-500.0,0.00049589,61]
[313437944,1707347469971,-642.15,0.00049589,61]
[313437945,1707347469982,-512.77,0.00049589,61]
[313437946,1707347469991,-500.0,0.00049589,61]
[313437947,1707347470003,-500.0,0.00049589,61]
[313437948,1707347470013,-987.44,0.00049589,61]
[313437949,1707347470023,-708.18,0.00049589,61]
[313437950,1707347470032,-1279.81,0.00049589,61]
[313437951,1707347470042,-500.0,0.00049589,61]
[313437952,1707347470053,-500.0,0.00049589,61]
[313437953,1707347470062,-500.0,0.00049589,30]
[313437954,1707347470072,-500.0,0.00049589,61]
[313437955,1707347470082,-1039.76,0.00049589,61]
[313437956,1707347470092,-1510.19,0.00049589,61]
[313437957,1707347470101,-500.0,0.00049589,61]
[313437958,1707347470110,-1202.21,0.00049589,61]
[313437959,1707347470120,-402.90766218,0.00049589,61]
[313437960,1707347470130,-882.03,0.00049589,61]
[313437961,1707347470139,-500.0,0.00049589,61]
[313437962,1707347470149,-500.0,0.00049589,61]
[313437963,1707347470158,-500.0,0.00049589,61]
[313437964,1707347470168,-642.07019251,0.00049589,2]
[313437965,1707347470178,-1944.08,0.00049589,61]
[313437966,1707347470188,-500.0,0.00049589,61]
[313437967,1707347470197,-500.0,0.00049589,61]
[313437968,1707347470207,-500.0,0.00049589,61]
[313437969,1707347470216,-500.0,0.00049589,61]
[313437970,1707347470228,-827.95,0.00049589,61]
[313437971,1707347470238,-500.0,0.00049589,61]
[313437972,1707347470248,-1399.44,0.00049589,61]
[313437973,1707347470258,-1000.0,0.00049589,45]
[313437974,1707347470268,-500.0,0.00049589,61]
[313437975,1707347470277,-159.23058763,0.00049589,61]
[313437976,1707347470287,-500.0,0.00049589,61]
[313437977,1707347470296,-500.0,0.00049589,61]
[313437978,1707347470306,-500.0,0.00049589,61]
[313437979,1707347470316,-1225.78,0.00049589,61]
[313437980,1707347470325,-500.0,0.00049589,7]
[313437981,1707347470335,-500.0,0.00049589,61]
[313437982,1707347470345,-500.0,0.00049589,61]
[313437983,1707347470356,-500.0,0.00049589,61]
[313437984,1707347470366,-500.0,0.00049589,61]
[313437985,1707347470377,-500.0,0.00049589,61]
[313437986,1707347470386,-500.0,0.00049589,61]
[313437987,1707347470397,-1318.1,0.00049589,61]
[313437988,1707347470407,-588.81,0.00049589,61]
[313437989,1707347470417,-1023.84,0.00049589,61]
[313437990,1707347470427,-603.49,0.00049589,61]
[313437991,1707347470437,-557.41,0.00049589,61]
[313437992,1707347470447,-500.0,0.00049589,61]
[313437993,1707347470457,-1660.22,0.00049589,61]
[313437994,1707347470467,-678.41,0.00049589,61]
[313437995,1707347470477,-500.0,0.00049589,61]
[313437996,1707347470487,-250.0,0.00049589,61]
[313437997,1707347470497,-256.38195348,0.00049589,61]
[313437998,1707347470506,-422.93232492,0.00049589,61]
[313437999,1707347470516,-500.0,0.00049589,61]
[313438000,1707347470525,-870.42,0.00049589,61]
[313438001,1707347470535,-1350.63,0.00049589,61]
[313438002,1707347470545,-500.0,0.00049589,61]
[313438003,1707347470554,-500.0,0.00049589,61]
[313438004,1707347470564,-763.54,0.00049589,61]
[313438005,1707347470573,-500.0,0.00049589,61]
[313438006,1707347470583,-500.0,0.00049589,61]
[313438007,1707347470592,-500.0,0.00049589,61]
[313438008,1707347470602,-900.52,0.00049589,61]
[313438009,1707347470611,-518.78849829,0.00049589,61]
[313438010,1707347470621,-822.94,0.00049589,61]
[313438011,1707347470631,-721.43,0.00049589,61]
[313438012,1707347470640,-500.0,0.00049589,61]
[313438013,1707347470650,-500.0,0.00049589,61]
[313438014,1707347470660,-500.0,0.00049589,61]
[313438015,1707347470670,-500.0,0.00049589,61]
[313438016,1707347470680,-500.0,0.00049589,61]
[313438017,1707347470690,-500.0,0.00049589,61]
[313438018,1707347470700,-500.0,0.00049589,61]
[313438019,1707347470710,-500.0,0.00049589,61]
[313438020,1707347470720,-639.99,0.00049589,61]
[313438021,1707347470730,-716.79,0.00049589,61]
[313438022,1707347470740,-677.67,0.00049589,61]
[313438023,1707347470750,-500.0,0.00049589,61]
[313438024,1707347470760,-500.0,0.00049589,61]
[313438025,1707347470770,-951.15,0.00049589,61]
[313438026,1707347470780,-500.0,0.00049589,61]
[313438027,1707347470789,-500.0,0.00049589,61]
[313438028,1707347470799,-500.0,0.00049589,61]
[313438029,1707347470809,-527.08,0.00049589,61]
[313438030,1707347470819,-500.0,0.00049589,61]
[313438031,1707347470829,-440.96977258,0.00049589,61]
[313438032,1707347470840,-722.05,0.00049589,61]
[313438033,1707347470849,-1602.94,0.00049589,61]
[313438034,1707347470859,-285.15148369,0.00049589,61]
[313438035,1707347470869,-1186.2,0.00049589,61]
[313438036,1707347470879,-587.67,0.00049589,61]
[313438037,1707347470889,-633.02,0.00049589,61]
[313438038,1707347470899,-500.0,0.00049589,61]
[313438039,1707347470908,-500.0,0.00049589,61]
[313438040,1707347470918,-500.0,0.00049589,61]
[313438041,1707347470927,-904.78,0.00049589,61]
[313438042,1707347470937,-500.0,0.00049589,61]
[313438043,1707347470947,-500.0,0.00049589,61]
[313438044,1707347470957,-500.0,0.00049589,61]
[313438045,1707347470967,-500.0,0.00049589,61]
[313438046,1707347470977,-152.11523322,0.00049589,61]
[313438047,1707347470986,-1100.98,0.00049589,61]
[313438048,1707347470995,-500.0,0.00049589,61]
[313438049,1707347471009,-160.30718551,0.00049589,61]
[313438050,1707347471018,-812.93,0.00049589,61]
[313438051,1707347471028,-1847.02,0.00049589,61]
[313438052,1707347471038,-565.02,0.00049589,61]
[313438053,1707347471049,-1007.48,0.00049589,61]
[313438054,1707347471059,-500.0,0.00049589,61]
[313438055,1707347471069,-500.0,0.00049589,61]
[313438056,1707347471079,-500.0,0.00049589,61]
[313438057,1707347471089,-500.0,0.00049589,61]
[313438058,1707347471101,-500.0,0.00049589,61]
[313438059,1707347471111,-500.0,0.00049589,61]
[313438060,1707347471121,-1362.87,0.00049589,61]
[313438061,1707347471131,-871.75,0.00049589,61]
[313438062,1707347471141,-500.0,0.00049589,61]
[313438063,1707347471151,-500.0,0.00049589,61]
[313438064,1707347471162,-1024.3,0.00049589,61]
[313438065,1707347471172,-500.0,0.00049589,61]
[313438066,1707347471182,-1446.27,0.00049589,61]
[313438067,1707347471193,-500.0,0.00049589,61]
[313438068,1707347471202,-672.39,0.00049589,61]
[313438069,1707347471213,-500.0,0.00049589,61]
[313438070,1707347471223,-500.0,0.00049589,61]
[313438071,1707347471233,-500.0,0.00049589,61]
[313438072,1707347471243,-587.15,0.00049589,61]
[313438073,1707347471253,-500.0,0.00049589,61]
[313438074,1707347471263,-500.0,0.00049589,61]
[313438075,1707347471273,-500.0,0.00049589,61]
[313438076,1707347471283,-865.24,0.00049589,61]
[313438077,1707347471293,-706.96,0.00049589,61]
[313438078,1707347471303,-500.0,0.00049589,61]
[313438079,1707347471314,-1651.05,0.00049589,2]
[313438080,1707347471324,-500.0,0.00049589,61]
[313438081,1707347471333,-500.0,0.00049589,61]
[313438082,1707347471344,-500.0,0.00049589,61]
[313438083,1707347471355,-543.36870826,0.00049589,61]
[313438084,1707347471366,-594.54102785,0.00049589,7]
[313438085,1707347471376,-629.18,0.00049589,61]
[313438086,1707347471386,-500.0,0.00049589,61]
[313438087,1707347471395,-500.0,0.00049589,61]
[313438088,1707347471404,-500.0,0.00049589,61]
[313438089,1707347471414,-500.0,0.00049589,61]
[313438090,1707347471425,-1072.47,0.00049589,61]
[313438091,1707347471435,-589.77,0.00049589,61]
[313438092,1707347471445,-500.0,0.00049589,61]
[313438093,1707347471456,-500.0,0.00049589,61]
[313438094,1707347471467,-855.94,0.00049589,61]
[313438095,1707347471478,-566.71,0.00049589,61]
[313438096,1707347471487,-638.9,0.00049589,61]
[313438097,1707347471497,-891.57,0.00049589,61]
[313438098,1707347471507,-597.70335139,0.00049589,61]
[313438099,1707347471730,-319.94552429,0.00049589,61]
[313438100,1707347471741,-565.18,0.00049589,61]
[313438101,1707347471750,-500.0,0.00049589,61]
[313438102,1707347471759,-500.0,0.00049589,61]
[313438103,1707347471769,-500.0,0.00049589,61]
[313438104,1707347471779,-1419.61,0.00049589,61]
[313438105,1707347471788,-500.0,0.00049589,61]
[313438106,1707347471798,-500.0,0.00049589,61]
[313438107,1707347471807,-500.0,0.00049589,61]
[313438108,1707347471816,-208.14350538,0.00049589,61]
[313438109,1707347471826,-500.0,0.00049589,61]
[313438110,1707347471836,-643.6405932,0.00049589,61]
[313438111,1707347471845,-780.46,0.00049589,61]
[313438112,1707347471855,-1854.4,0.00049589,61]
[313438113,1707347471865,-500.0,0.00049589,61]
[313438114,1707347471874,-500.0,0.00049589,61]
[313438115,1707347471884,-500.0,0.00049589,61]
[313438116,1707347471893,-500.0,0.00049589,61]
[313438117,1707347471903,-500.0,0.00049589,61]
[313438118,1707347471913,-500.0,0.00049589,61]
[313438119,1707347471922,-1316.79,0.00049589,61]
[313438120,1707347471931,-1708.38,0.00049589,61]
[313438121,1707347471940,-1342.65,0.00049589,61]
[313438122,1707347471950,-500.0,0.00049589,61]
[313438123,1707347471959,-1494.77,0.00049589,61]
[313438124,1707347471969,-512.4311269,0.00049589,61]
[313438125,1707347471979,-500.0,0.00049589,61]
[313438126,1707347471989,-500.0,0.00049589,61]
[313438127,1707347472000,-500.0,0.00049589,61]
[313438128,1707347472013,-500.0,0.00049589,61]
[313438129,1707347472022,-663.75,0.00049589,61]
[313438130,1707347472032,-500.0,0.00049589,61]
[313438131,1707347472042,-500.0,0.00049589,61]
[313438132,1707347472051,-500.0,0.00049589,61]
[313438133,1707347472060,-500.0,0.00049589,61]
[313438134,1707347472070,-500.0,0.00049589,61]
[313438135,1707347472080,-1055.96,0.00049589,61]
[313438136,1707347472090,-1526.79,0.00049589,61]
[313438137,1707347472098,-500.0,0.00049589,61]
[313438138,1707347472109,-1396.27,0.00049589,61]
[313438139,1707347472119,-500.0,0.00049589,61]
[313438140,1707347472128,-500.0,0.00049589,61]
[313438141,1707347472137,-537.62372204,0.00049589,61]
[313438142,1707347472147,-500.0,0.00049589,61]
[313438143,1707347472156,-555.83701484,0.00049589,61]
[313438144,1707347472165,-500.0,0.00049589,61]
[313438145,1707347472175,-648.32,0.00049589,61]
[313438146,1707347472184,-539.92,0.00049589,61]
[313438147,1707347472194,-500.0,0.00049589,61]
[313438148,1707347472203,-668.26,0.00049589,60]
[313438149,1707347472212,-500.0,0.00049589,61]
[313438150,1707347472221,-500.0,0.00049589,28]
[313438151,1707347472230,-500.0,0.00049589,61]
[313438152,1707347472239,-500.0,0.00049589,61]
[313438153,1707347472249,-500.0,0.00049589,61]
[313438154,1707347472258,-500.0,0.00049589,61]
[313438155,1707347472268,-500.0,0.00049589,61]
[313438156,1707347472278,-500.0,0.00049589,61]
[313438157,1707347472287,-1429.47,0.00049589,61]
[313438158,1707347472297,-500.0,0.00049589,61]
[313438159,1707347472307,-945.99,0.00049589,61]
[313438160,1707347472316,-1000.0,0.00049589,7]
[313438161,1707347472326,-500.0,0.00049589,61]
[313438162,1707347472337,-500.0,0.00049589,30]
[313438163,1707347472346,-500.0,0.00049589,61]
[313438164,1707347472357,-500.0,0.00049589,61]
[313438165,1707347472368,-500.0,0.00049589,61]
[313438166,1707347472378,-500.0,0.00049589,61]
[313438167,1707347472387,-500.0,0.00049589,61]
[313438168,1707347472396,-2011.65,0.00049589,61]
[313438169,1707347472406,-500.0,0.00049589,61]
[313438170,1707347472415,-512.34,0.00049589,61]
[313438171,1707347472425,-1457.18,0.00049589,61]
[313438172,1707347472434,-500.0,0.00049589,61]
[313438173,1707347472444,-500.0,0.00049589,7]
[313438174,1707347472453,-500.0,0.00049589,61]
[313438175,1707347472463,-500.0,0.00049589,61]
[313438176,1707347472472,-500.0,0.00049589,61]
[313438177,1707347472482,-500.0,0.00049589,61]
[313438178,1707347472491,-500.0,0.00049589,61]
[313438179,1707347472501,-1645.54,0.00049589,61]
[313438180,1707347472510,-1020.4,0.00049589,61]
[313438181,1707347472520,-500.0,0.00049589,61]
[313438182,1707347472530,-929.02,0.00049589,61]
[313438183,1707347472539,-500.0,0.00049589,61]
[313438184,1707347472550,-1068.5,0.00049589,2]
[313438185,1707347472559,-500.0,0.00049589,61]
[313438186,1707347472569,-889.95,0.00049589,61]
[313438187,1707347472580,-500.0,0.00049589,61]
[313438188,1707347472590,-500.0,0.00049589,61]
[313438189,1707347472600,-500.0,0.00049589,61]
[313438190,1707347472612,-500.0,0.00049589,61]
[313438191,1707347472622,-500.0,0.00049589,61]
[313438192,1707347472633,-500.0,0.00049589,61]
[313438193,1707347472644,-500.0,0.00049589,61]
[313438194,1707347472654,-1176.13,0.00049589,61]
[313438195,1707347472667,-500.0,0.00049589,61]
[313438196,1707347472678,-536.7964742,0.00049589,61]
[313438197,1707347472690,-8915.7,0.00049589,61]
[313438198,1707347472701,-500.0,0.00049589,61]
[313438199,1707347472711,-781.11,0.00049589,61]
[313438200,1707347472721,-500.0,0.00049589,61]
[313438201,1707347472732,-500.0,0.00049589,61]
[313438202,1707347472742,-500.0,0.00049589,61]
[313438203,1707347472752,-805.69,0.00049589,61]
[313438204,1707347472762,-500.0,0.00049589,61]
[313438205,1707347472772,-360.51585272,0.00049589,61]
[313438206,1707347472782,-500.0,0.00049589,61]
[313438207,1707347472792,-500.0,0.00049589,61]
[313438208,1707347472802,-500.0,0.00049589,61]
[313438209,1707347472812,-1791.63,0.00049589,61]
[313438210,1707347472822,-500.0,0.00049589,61]
[313438211,1707347472831,-500.0,0.00049589,61]
[313438212,1707347472840,-500.0,0.00049589,61]
[313438213,1707347472850,-784.67,0.00049589,61]
[313438214,1707347472859,-500.0,0.00049589,61]
[313438215,1707347472868,-792.24,0.00049589,61]
[313438216,1707347472878,-500.0,0.00049589,61]
[313438217,1707347472889,-500.0,0.00049589,61]
[313438218,1707347472898,-10000.0,0.00049589,61]
[313438219,1707347472908,-500.0,0.00049589,61]
[313438220,1707347472918,-919.17,0.00049589,61]
[313438221,1707347472928,-500.0,0.00049589,61]
[313438222,1707347472938,-844.83,0.00049589,61]
[313438223,1707347472948,-500.0,0.00049589,61]
[313438224,1707347472957,-613.56,0.00049589,61]
[313438225,1707347472967,-500.0,0.00049589,61]
[313438226,1707347472977,-535.33,0.00049589,61]
[313438227,1707347472987,-500.0,0.00049589,31]
[313438228,1707347472996,-500.0,0.00049589,61]
[313438229,1707347473008,-538.45,0.00049589,61]
[313438230,1707347473018,-577.62016952,0.00049589,61]
[313438231,1707347473028,-1219.52,0.00049589,61]
[313438232,1707347473038,-500.0,0.00049589,61]
[313438233,1707347473047,-500.0,0.00049589,61]
[313438234,1707347473058,-994.99,0.00049589,61]
[313438235,1707347473067,-1561.58,0.00049589,61]
[313438236,1707347473077,-1749.86,0.00049589,61]
[313438237,1707347473086,-500.0,0.00049589,61]
[313438238,1707347473095,-620.9,0.00049589,61]
[313438239,1707347473104,-229.7446048,0.00049589,61]
[313438240,1707347473114,-500.0,0.00049589,61]
[313438241,1707347473123,-500.0,0.00049589,61]
[313438242,1707347473132,-692.32,0.00049589,61]
[313438243,1707347473141,-908.6,0.00049589,61]
[313438244,1707347473151,-500.0,0.00049589,61]
[313438245,1707347473161,-500.0,0.00049589,61]
[313438246,1707347473170,-500.0,0.00049589,61]
[313438247,1707347473179,-762.27,0.00049589,61]
[313438248,1707347473188,-1508.76,0.00049589,61]
[313438249,1707347473198,-500.0,0.00049589,61]
[313438250,1707347473207,-500.0,0.00049589,61]
[313438251,1707347473217,-500.0,0.00049589,61]
[313438252,1707347473226,-500.0,0.00049589,61]
[313438253,1707347473236,-668.34,0.00049589,61]
[313438254,1707347473245,-319.28496148,0.00049589,61]
[313438255,1707347473255,-500.0,0.00049589,61]
[313438256,1707347473264,-500.0,0.00049589,61]
[313438257,1707347473274,-500.0,0.00049589,61]
[313438258,1707347473283,-593.96,0.00049589,61]
[313438259,1707347473292,-398.15667429,0.00049589,61]
[313438260,1707347473301,-500.0,0.00049589,61]
[313438261,1707347473311,-500.0,0.00049589,61]
[313438262,1707347473320,-500.0,0.00049589,61]
[313438263,1707347473329,-500.0,0.00049589,61]
[313438264,1707347473338,-500.0,0.00049589,61]
[313438265,1707347473348,-500.0,0.00049589,61]
[313438266,1707347473358,-500.0,0.00049589,61]
[313438267,1707347473367,-500.0,0.00049589,61]
[313438268,1707347473377,-514.28630562,0.00049589,61]
[313438269,1707347473387,-1387.15,0.00049589,61]
[313438270,1707347473396,-500.0,0.00049589,61]
[313438271,1707347473406,-500.0,0.00049589,61]